bitfinex/quotes_ETHUSD_20250324
["timestamp","ask_amount","ask_price","bid_price","bid_amount"]
[1742796482820,0.01,2073.2,2072.2,8.91154299]
[1742796483020,31.63769,2073.1,2073.0,1.79790349]
[1742796483222,31.63769,2073.1,2070.6,0.8233]
[1742796483223,0.1,2072.6,2070.6,0.8233]
[1742796483525,4.82488,2072.6,2070.9,4.82864]
[1742796483738,18.0,2072.6,2071.7,4.82673]
[1742796483935,18.0,2072.6,2071.9,4.82635]
[1742796484273,18.0,2072.6,2071.1,0.8233]
[1742796484582,1.8,2072.5,2071.0,0.41336432]
[1742796484726,0.08911362,2072.4,2071.2,4.828]
[1742796484925,4.82285,2073.5,2071.4,4.82742]
[1742796485125,0.482285,2073.4,2070.7,0.4088907]
[1742796485349,26.814,2073.3,2069.5,5.053901]
[1742796485530,23.3322516,2073.3,2068.2,48.52346221]
[1742796485746,0.09999,2071.0,2065.7,26.814]
[1742796485956,0.1,2072.1,2068.3,10.24]
[1742796486162,0.1,2072.1,2066.7,0.08847783]
[1742796486456,0.1,2069.4,2067.1,4.83755]
[1742796486681,0.1,2069.2,2067.9,4.8357]
[1742796487033,0.1,2069.0,2068.2,3.0]
[1742796487349,0.96454065,2071.3,2067.2,0.483755]
[1742796487350,0.10779884,2068.9,2068.8,4.83372]
[1742796487551,26.776,2071.1,2068.0,4.83558]
[1742796487753,4.82827,2071.2,2068.7,4.83383]
[1742796488059,0.8008,2071.5,2067.2,0.483755]
[1742796488060,4.82807,2071.3,2069.7,4.83149]
[1742796488266,0.18792923,2071.2,2069.8,6.01]
[1742796488470,0.08911362,2071.2,2069.9,0.601]
[1742796488668,27.5768,2072.2,2070.7,4.82916]
[1742796488836,4.82467,2072.7,2071.1,4.82834]
[1742796488837,0.09881561,2072.1,2071.1,4.82834]
[1742796489032,0.8008,2072.9,2070.8,6.01]
[1742796489233,4.82462,2072.7,2070.9,6.611]
[1742796489569,0.8008,2072.9,2071.0,6.01]
[1742796489734,4.82801,2071.3,2071.1,6.01]
[1742796489943,4.82883,2070.9,2069.4,3.0]
[1742796490146,4.82986,2070.5,2069.5,6.01]
[1742796490436,31.57983,2070.9,2068.0,3.0]
[1742796490437,4.83021,2070.3,2068.0,3.0]
[1742796490690,4.83021,2070.3,2067.8,10.24]
[1742796490832,4.83143,2069.8,2069.6,6.01]
[1742796491033,4.83161,2069.7,2069.6,6.01]
[1742796491234,4.93042561,2069.7,2069.6,6.01]
[1742796491541,0.09881561,2069.7,2069.6,6.01]
[1742796491741,0.8008,2070.6,2069.6,6.01]
[1742796491984,0.8008,2070.6,2068.6,4.83403]
[1742796491985,0.09881561,2069.7,2068.6,4.83403]
[1742796492291,4.83061,2070.2,2068.6,6.01]
[1742796492436,0.09881561,2069.6,2068.8,3.0]
[1742796492637,4.83301,2069.2,2068.9,6.01]
[1742796492952,0.09768677,2069.1,2068.9,6.01]
[1742796493171,3.0,2070.4,2068.9,6.01]
[1742796493382,3.0,2070.4,2069.0,6.01]
[1742796493679,4.83119,2069.9,2069.0,3.0]
[1742796493886,0.8008,2070.6,2068.8,3.0]
[1742796493887,4.8311,2070.0,2068.8,3.0]
[1742796494037,4.83059,2070.2,2068.8,3.0]
[1742796494238,5.6304,2070.6,2069.0,3.0]
[1742796494440,5.6304,2070.6,2068.4,4.83445]
[1742796494441,4.83008,2070.4,2069.2,3.0]
[1742796494756,4.83032,2070.3,2069.3,0.55]
[1742796494970,3.23724,2070.5,2069.1,6.01]
[1742796495209,5.716736,2070.4,2067.8,10.24]
[1742796495486,2.48311621,2070.2,2067.5,0.7689]
[1742796495653,0.36833662,2070.5,2068.6,13.16499]
[1742796495851,0.55,2070.2,2066.8,1.28458116]
[1742796496082,4.83577,2068.0,2066.8,1.28458116]
[1742796496282,4.83454,2068.5,2067.1,4.83757]
[1742796496503,7.32705097,2069.6,2067.1,4.83757]
[1742796496504,0.09768677,2067.9,2067.1,4.83757]
[1742796496787,4.83325,2069.0,2067.2,0.483757]
[1742796496968,0.09768677,2067.8,2067.2,0.483757]
[1742796497139,4.83547,2068.1,2066.9,4.83799]
[1742796497340,0.09768677,2067.7,2066.9,4.83799]
[1742796497554,2.49386477,2069.8,2066.9,4.83799]
[1742796497803,2.49386477,2069.8,2066.8,1.28458116]
[1742796497804,0.09178335,2067.6,2066.8,1.28458116]
[1742796497995,4.83694,2067.5,2066.8,4.56998528]
[1742796498148,9.67385,2067.5,2066.8,1.28458116]
[1742796498337,0.09178335,2067.4,2066.8,1.28458116]
[1742796498543,0.09178335,2067.4,2066.8,0.51568116]
[1742796498859,4.8378,2067.1,2066.0,0.7853]
[1742796499070,4.8342,2068.6,2066.6,4.8387]
[1742796499382,4.83211,2069.5,2067.6,5.38635]
[1742796499569,4.8314,2069.8,2067.6,5.38635]
[1742796499570,4.83395,2068.7,2068.6,0.07557801]
[1742796499891,4.83395,2068.7,2068.6,6.63557801]
[1742796500377,4.83378,2068.8,2068.7,0.55]
[1742796500572,4.83395,2068.7,2068.6,6.63557801]
[1742796500769,4.83395,2068.7,2068.6,6.08557801]
[1742796501272,9.47435,2068.7,2068.6,8.01e-06]
[1742796501473,4.83418,2068.6,2066.9,0.55]
[1742796501690,1.6404,2068.7,2067.0,4.83792]
[1742796501894,4.83545,2068.1,2067.0,0.55]
[1742796502090,4.83521,2068.2,2067.0,0.55]
[1742796502279,4.83484,2068.4,2067.2,0.55]
[1742796502489,4.83504,2068.3,2067.1,0.55]
[1742796502689,4.83522,2068.2,2067.1,3.55]
[1742796502885,4.83536,2068.1,2067.0,0.55]
[1742796503120,3.0,2068.6,2067.2,0.55]
[1742796503304,3.0,2068.6,2067.0,0.55]
[1742796503624,4.83406,2068.7,2067.8,0.55]
[1742796503803,1.6404,2069.3,2067.9,3.0]
[1742796504007,4.83293,2069.2,2068.0,0.55]
[1742796504192,1.6404,2069.3,2068.0,0.55]
[1742796504387,4.8345,2068.5,2067.8,0.55]
[1742796504620,4.83379,2068.8,2067.7,0.55]
[1742796504827,4.83068,2070.1,2067.9,0.55]
[1742796505126,26.731,2073.0,2070.4,0.55]
[1742796505287,4.82609,2072.1,2070.6,0.55]
[1742796505488,4.82751,2071.5,2070.8,0.55]
[1742796505705,26.731,2072.0,2071.0,0.55]
[1742796505905,1.451299,2073.0,2071.2,0.55]
[1742796506093,0.3661849,2073.8,2071.7,3.0]
[1742796506274,4.82253,2073.6,2071.9,0.55]
[1742796506491,26.731,2073.5,2072.1,0.55]
[1742796506693,4.82294,2073.5,2072.3,0.55]
[1742796506893,4.82285,2073.5,2072.3,0.55]
[1742796507096,28.181139,2074.4,2072.4,6.01]
[1742796507412,4.81582,2076.5,2074.5,1.5063]
[1742796507589,0.00558587,2076.7,2076.2,0.55]
[1742796507590,1.448631,2076.6,2076.2,0.55]
[1742796507787,0.00558587,2076.7,2076.2,0.55]
[1742796507788,0.00558587,2076.7,2076.6,4.81556]
[1742796508108,0.005,2078.5,2077.7,4.81286]
[1742796508283,0.005,2078.5,2076.7,4.81533]
[1742796508284,0.005,2078.5,2077.8,21.06257]
[1742796508492,0.005,2078.5,2078.1,0.55]
[1742796508687,0.005,2078.5,2077.8,10.24]
[1742796508886,4.81324,2077.6,2077.5,1.445973]
[1742796509215,1.6404,2077.8,2075.3,1.5063]
[1742796509389,4.81278,2077.8,2075.3,1.5063]
[1742796509592,0.36974361,2078.2,2076.5,0.06802021]
[1742796509792,4.81556,2076.6,2076.5,0.06802021]
[1742796509988,1.6404,2076.9,2076.5,2.1e-07]
[1742796510201,26.688,2077.3,2076.5,2.1e-07]
[1742796512828,4.81852,2075.4,2074.2,1.5063]
[1742796512983,0.10618673,2075.4,2075.0,10.24]
[1742796513183,4.81786,2075.7,2075.1,6.01]
[1742796513486,7.81602,2076.4,2075.2,6.01]
[1742796513487,4.81858,2075.3,2075.2,6.01]
[1742796513913,4.1143483,2074.4,2074.3,16.25]
[1742796514518,4.22053503,2074.4,2074.3,16.25]
[1742796515031,4.81822,2075.5,2074.5,6.01]
[1742796515196,4.81915,2075.1,2074.6,6.01]
[1742796515399,26.671,2076.3,2074.6,6.01]
[1742796515400,4.81793,2075.6,2074.6,6.01]
[1742796515599,9.63839,2075.1,2074.7,6.01]
[1742796515898,3.0,2076.0,2074.7,6.01]
[1742796516098,3.0,2076.2,2074.8,10.24]
[1742796516299,4.81829,2075.5,2074.9,6.01]
[1742796516624,4.81741,2075.8,2074.9,6.01]
[1742796516829,4.81916,2075.1,2074.9,6.01]
[1742796517006,4.81927,2075.0,2074.9,6.01]
[1742796517354,4.81695,2076.0,2074.9,6.01]
[1742796517558,4.81877,2075.3,2075.0,10.24]
[1742796517738,4.81868,2075.3,2075.1,6.01]
[1742796517943,4.81881,2075.2,2075.1,6.01]
[1742796518125,4.82113,2074.2,2074.1,10.24]
[1742796518434,4.82113,2074.2,2074.1,16.25]
[1742796518616,4.8195,2074.9,2074.1,16.25]
[1742796518952,4.8209,2074.3,2074.2,10.24]
[1742796519739,4.82113,2074.2,2073.1,6.01]
[1742796519906,4.82113,2074.2,2073.2,10.24]
[1742796519907,4.82322,2073.3,2073.2,10.24]
[1742796520107,4.82492,2072.6,2072.4,10.24]
[1742796520304,4.82492,2072.6,2072.5,10.24]
[1742796521135,4.82416,2072.9,2072.5,10.24]
[1742796521136,4.82439,2072.8,2072.5,10.24]
[1742796521334,4.82369,2073.1,2072.4,10.24]
[1742796521534,4.82444,2072.8,2071.2,6.01]
[1742796521735,4.82462,2072.7,2071.2,16.25]
[1742796521924,4.82439,2072.8,2071.2,21.07806]
[1742796522128,26.66,2073.2,2071.2,21.07806]
[1742796522129,4.81461,2077.1,2076.0,4.81681]
[1742796522442,2.12195578,2078.7,2076.6,4.81556]
[1742796522641,2.12195578,2078.7,2077.0,4.81453]
[1742796522843,2.12195578,2078.7,2077.2,4.81413]
[1742796522844,4.8116,2078.4,2077.2,4.81413]
[1742796523046,0.48166,2078.3,2077.4,0.55]
[1742796523221,0.48166,2078.3,2077.3,10.24]
[1742796523222,27.14766,2078.3,2077.5,10.24]
[1742796523420,4.81208,2078.1,2077.3,6.01]
[1742796523623,26.666,2078.3,2077.4,10.24]
[1742796523824,26.666,2078.3,2076.6,10.24]
[1742796524012,26.666,2078.3,2076.7,10.24]
[1742796524216,4.81251,2078.0,2076.6,10.24]
[1742796524416,4.81251,2078.0,2076.0,10.82677]
[1742796524417,1.5801,2078.1,2076.7,10.24]
[1742796524618,1.5801,2078.1,2076.1,10.24]
[1742796524839,2.49964642,2078.0,2076.2,10.79]
[1742796525043,3.0,2077.8,2076.2,10.24]
[1742796525348,3.0,2077.8,2076.1,10.24]
[1742796525349,4.81649,2076.2,2076.1,10.24]
[1742796525652,3.0,2076.5,2075.4,10.24]
[1742796525956,3.0,2076.5,2075.5,10.24]
[1742796526247,4.81533,2076.7,2075.7,0.55]
[1742796526446,4.8151,2076.8,2075.7,0.55]
[1742796526657,4.8151,2076.8,2075.9,0.55]
[1742796526836,4.81544,2076.7,2076.1,0.55]
[1742796527159,0.10316202,2076.7,2076.3,0.55]
[1742796527548,4.81525,2076.8,2076.3,0.55]
[1742796527549,9.63055,2076.8,2076.3,0.55]
[1742796527747,1.5801,2078.8,2077.2,10.24]
[1742796527948,1.5801,2078.8,2077.3,6.01]
[1742796528161,4.81347,2077.5,2077.4,10.24]
[1742796528334,26.646,2078.6,2076.6,0.55]
[1742796528535,26.646,2078.6,2076.7,10.24]
[1742796528536,4.8151,2076.8,2076.7,10.24]
[1742796528948,4.81543,2076.7,2075.8,10.24]
[1742796529160,4.8185,2075.4,2075.1,10.24]
[1742796529470,4.8185,2075.4,2074.6,6.01]
[1742796529471,4.81858,2075.3,2075.2,10.24]
[1742796530137,4.8202,2074.6,2074.5,3.22222]
[1742796530529,3.0,2074.7,2073.8,3.22222]
[1742796530729,3.0,2074.7,2073.7,6.01]
[1742796530730,4.82137,2074.1,2073.9,3.22222]
[1742796531030,4.82136,2074.1,2074.0,3.22222]
[1742796531628,4.82289,2073.5,2073.0,3.22222]
[1742796531859,4.82346,2073.2,2073.1,3.22222]
[1742796532226,26.647,2073.9,2073.1,3.22222]
[1742796532536,4.82346,2073.2,2073.1,3.22222]
[1742796532932,4.82283,2073.5,2073.3,3.22222]
[1742796533159,4.82283,2073.5,2073.4,0.55]
[1742796533357,4.8236,2073.2,2072.6,3.22222]
[1742796533547,4.8238,2073.1,2072.6,3.22222]
[1742796533743,9.64766,2073.1,2072.6,3.22222]
[1742796533946,1.449878,2075.3,2073.9,3.0]
[1742796534158,0.005,2076.4,2074.5,1.5568]
[1742796534437,0.005,2076.4,2075.0,0.55]
[1742796534963,0.005,2076.4,2075.1,3.0]
[1742796535165,0.005,2076.4,2075.6,0.55]
[1742796535334,4.82119,2076.4,2075.8,0.55]
[1742796535534,4.81659,2076.2,2075.8,0.55]
[1742796535937,4.81629,2076.3,2075.8,0.55]
[1742796536252,0.005,2076.4,2075.8,0.55]
[1742796536453,0.005,2076.4,2075.7,3.22222]
[1742796536654,4.81636,2076.3,2075.8,0.59815817]
[1742796536838,0.005,2076.4,2075.8,0.55]
[1742796537039,0.09148747,2076.2,2075.8,0.55]
[1742796537368,0.005,2076.4,2075.7,3.22222]
[1742796537369,0.005,2076.4,2076.0,0.55]
[1742796537538,0.09164073,2076.1,2076.0,0.55]
[1742796537870,4.81672,2076.1,2076.0,0.55]
[1742796538059,4.90836073,2076.1,2076.0,0.55]
[1742796538239,0.09164073,2076.1,2076.0,0.55]
[1742796538441,4.90836073,2076.1,2076.0,0.97647016]
[1742796538937,6.41566073,2076.1,2073.5,1.5568]
[1742796539164,6.41566073,2076.1,2069.6,0.01797]
[1742796539165,2.44573057,2074.6,2071.1,4.82835]
[1742796539369,1.5073,2074.7,2071.0,31.13931958]
[1742796539370,0.08911362,2074.5,2072.0,4.82616]
[1742796539672,0.08911362,2074.5,2072.1,38.02045583]
[1742796539876,4.82128,2074.2,2073.0,4.82389]
[1742796540087,1.5073,2075.4,2073.2,4.82346]
[1742796540265,7.81858,2075.3,2073.3,6.32909335]
[1742796540463,4.8188,2075.3,2073.4,11.32522486]
[1742796540773,4.81791,2075.6,2074.4,4.82055]
[1742796540982,1.5073,2076.7,2075.6,5.31522486]
[1742796541181,1.5073,2076.7,2075.7,5.31522486]
[1742796541182,4.81625,2076.3,2075.7,5.31522486]
[1742796541361,4.81556,2076.6,2075.7,5.31522486]
[1742796541563,4.81574,2076.6,2075.8,5.31522486]
[1742796541767,4.8212,2076.4,2075.8,5.31522486]
[1742796541967,0.005,2076.4,2075.8,5.31522486]
[1742796542272,0.005,2076.4,2076.0,4.81673]
[1742796542490,0.005,2076.4,2075.9,5.31522486]
[1742796542701,0.005,2076.4,2075.9,10.13232486]
[1742796542875,0.005,2076.4,2076.3,7.81625]
[1742796543075,0.005,2076.4,2076.0,4.81682]
[1742796543286,0.005,2076.4,2076.2,3.0]
[1742796543490,4.81301,2077.7,2076.4,0.479949]
[1742796543700,4.81394,2077.4,2076.4,0.479949]
[1742796543901,6.31885,2078.4,2076.5,11.32522486]
[1742796543902,26.648,2078.2,2076.5,11.32522486]
[1742796544108,4.81533,2076.7,2076.6,5.31522486]
[1742796544297,4.81579,2076.5,2076.4,0.479949]
[1742796544674,4.90937034,2076.5,2076.4,0.479949]
[1742796545281,5.01264234,2076.5,2076.4,0.479949]
[1742796545504,0.19685234,2076.5,2076.4,0.479949]
[1742796545707,5.01264234,2076.5,2076.4,0.479949]
[1742796546082,5.01264234,2076.5,2076.4,9e-06]
[1742796546493,4.81718,2075.9,2075.8,5.31522486]
[1742796547018,4.81834,2075.4,2075.3,4.86e-06]
[1742796547218,0.09358034,2075.9,2074.9,4.86e-06]
[1742796547419,4.81914,2075.1,2075.0,4.86e-06]
[1742796547718,4.81974,2074.8,2074.7,4.86e-06]
[1742796547887,4.81974,2074.8,2073.8,6.01]
[1742796547888,4.82172,2074.0,2073.9,4.86e-06]
[1742796548289,4.91518034,2074.0,2073.9,4.86e-06]
[1742796548890,0.09358034,2074.0,2073.9,4.86e-06]
[1742796549115,4.82065,2074.5,2073.9,6.01000486]
[1742796549297,4.8209,2074.3,2073.2,6.01000486]
[1742796549505,4.82217,2073.8,2073.3,4.86e-06]
[1742796549694,4.82246,2073.7,2073.4,4.86e-06]
[1742796550095,6.44878,2074.7,2073.4,4.86e-06]
[1742796550295,4.82174,2074.0,2073.5,6.01000486]
[1742796550501,4.82206,2073.8,2073.6,4.86e-06]
[1742796550702,4.82132,2074.2,2073.6,4.86e-06]
[1742796550895,0.08911362,2074.6,2073.6,4.86e-06]
[1742796551100,4.82225,2073.8,2073.7,4.86e-06]
[1742796551322,0.08911362,2074.6,2073.7,4.86e-06]
[1742796551525,0.08911362,2074.6,2073.8,4.86e-06]
[1742796551741,4.82043,2074.5,2073.8,4.86e-06]
[1742796551949,4.82126,2074.2,2073.8,4.86e-06]
[1742796552239,0.08911362,2074.6,2073.9,4.86e-06]
[1742796552409,4.82084,2074.4,2074.1,0.55]
[1742796552613,4.821,2074.3,2074.1,0.55]
[1742796552835,4.821,2074.3,2074.0,6.01000486]
[1742796553044,4.82136,2074.1,2074.0,6.01]
[1742796554059,4.82032,2074.6,2073.7,4.86e-06]
[1742796554346,4.82183,2073.9,2073.8,4.86e-06]
[1742796554510,4.8209,2074.3,2073.4,4.86e-06]
[1742796554714,4.8227,2073.6,2073.3,4.86e-06]
[1742796554915,4.82277,2073.5,2073.4,4.86e-06]
[1742796555110,4.82276,2073.5,2073.4,4.86e-06]
[1742796555314,4.8227,2073.6,2073.4,4.86e-06]
[1742796555520,4.82276,2073.5,2073.4,4.86e-06]
[1742796557437,4.82322,2073.3,2073.2,6.01]
[1742796557853,4.82306,2073.4,2073.2,6.01]
[1742796558132,4.82322,2073.3,2073.2,6.01]
[1742796559056,4.82263,2073.6,2073.3,0.55]
[1742796559265,4.82282,2073.5,2073.4,4.86e-06]
[1742796560226,4.82212,2073.8,2073.4,4.86e-06]
[1742796560736,4.82274,2073.6,2073.4,4.86e-06]
[1742796560932,4.82276,2073.5,2073.4,4.86e-06]
[1742796562442,4.82402,2073.0,2072.7,6.01000486]
[1742796562645,4.82231,2073.7,2072.8,4.86e-06]
[1742796562863,4.82396,2073.0,2072.9,4.86e-06]
[1742796563562,4.82375,2073.1,2072.9,4.86e-06]
[1742796563764,4.82392,2073.0,2072.0,16.25]
[1742796563977,4.91326362,2072.9,2072.0,10.83622]
[1742796564276,4.8244,2072.8,2072.2,0.55]
[1742796564441,4.82469,2072.7,2072.2,0.55]
[1742796564642,4.82501,2072.6,2072.3,10.24]
[1742796564964,4.82532,2072.4,2072.3,10.24]
[1742796565171,4.82555,2072.3,2072.2,6.01]
[1742796565745,4.82555,2072.3,2071.4,10.24]
[1742796565746,4.82683,2071.8,2071.4,16.25]
[1742796565986,4.82711,2071.7,2071.5,10.24]
[1742796566181,4.82718,2071.6,2071.5,10.24]
[1742796567046,4.82673,2071.8,2071.5,10.24]
[1742796567373,4.82672,2071.8,2071.6,0.55]
[1742796568580,4.82695,2071.7,2071.6,0.55]
[1742796568776,4.82718,2071.6,2071.5,10.24]
[1742796568952,4.82709,2071.7,2071.5,10.24]
[1742796569154,4.82718,2071.6,2071.5,10.24]
[1742796569552,3.0,2072.3,2071.3,10.24]
[1742796569553,4.82749,2071.5,2071.3,10.24]
[1742796569778,3.0,2072.3,2071.4,10.24]
[1742796569979,4.82718,2071.6,2071.5,10.24]
[1742796570188,4.82765,2071.4,2071.3,16.25]
[1742796570490,4.82745,2071.5,2071.3,16.25]
[1742796570650,4.82708,2071.7,2071.3,16.25]
[1742796570651,4.82728,2071.6,2071.4,10.24]
[1742796570856,4.8272,2071.6,2071.4,10.24]
[1742796571654,9.65457,2071.6,2071.4,10.24]
[1742796572057,4.8272,2071.6,2071.4,10.24]
[1742796572285,4.82741,2071.5,2071.4,10.24]
[1742796572689,7.82566,2072.3,2071.4,10.24]
[1742796572690,4.82578,2072.2,2071.4,10.24]
[1742796572873,4.82578,2072.2,2071.5,10.24]
[1742796572874,4.82713,2071.7,2071.5,10.24]
[1742796573076,4.82741,2071.5,2071.4,10.24]
[1742796573286,4.82765,2071.4,2071.3,6.01]
[1742796573878,4.8272,2071.6,2070.2,2.61660397]
[1742796573879,4.82927,2070.8,2070.3,16.25]
[1742796574082,4.82852,2071.1,2070.4,10.24]
[1742796574284,4.82921,2070.8,2070.4,10.24]
[1742796574592,4.82621,2072.1,2070.4,10.24]
[1742796574593,4.82643,2072.0,2071.3,3.0]
[1742796574777,4.82452,2072.8,2071.4,43.479]
[1742796574976,4.82578,2072.3,2071.6,0.55]
[1742796575165,0.482578,2072.3,2071.7,16.25]
[1742796575371,9.65318,2071.9,2071.7,16.25]
[1742796575570,4.82672,2071.8,2071.7,16.25]
[1742796575768,4.82672,2071.8,2071.7,6.01]
[1742796577301,4.82439,2072.8,2071.8,0.55]
[1742796577500,1.6574,2072.9,2072.0,0.55]
[1742796577501,4.82485,2072.6,2072.0,0.55]
[1742796577702,4.82485,2072.6,2071.2,4.82811]
[1742796577703,4.82439,2072.8,2071.5,0.55]
[1742796578001,4.82718,2071.6,2071.5,10.24]
[1742796578203,4.82718,2071.6,2071.4,6.01]
[1742796578405,6.48164,2072.9,2071.6,0.55]
[1742796578569,4.82567,2072.3,2071.8,0.55]
[1742796578775,4.82648,2071.9,2071.7,16.25]
[1742796579101,4.82672,2071.8,2071.7,16.25]
[1742796579301,9.65468,2071.6,2071.4,10.24]
[1742796579502,4.82729,2071.6,2071.4,10.24]
[1742796579706,4.82718,2071.6,2071.4,10.24]
[1742796580072,4.8257,2072.3,2071.5,0.55]
[1742796580275,4.82695,2071.7,2071.6,10.24]
[1742796580604,9.65411,2071.7,2071.3,0.55]
[1742796580807,4.82732,2071.6,2071.2,10.24]
[1742796580971,3.35408456,2072.3,2071.2,10.24]
[1742796581173,4.82663,2071.9,2071.4,0.55]
[1742796581378,9.65322,2071.9,2071.5,16.25]
[1742796581612,9.6532,2071.9,2071.6,10.24]
[1742796581833,4.82659,2071.9,2071.6,6.01]
[1742796581989,4.82659,2071.9,2071.7,10.24]
[1742796582191,4.82672,2071.8,2071.7,10.24]
[1742796583085,4.82556,2072.3,2071.7,6.56]
[1742796583310,4.8259,2072.2,2071.9,0.55]
[1742796583613,4.82569,2072.3,2071.7,16.8]
[1742796583614,4.82625,2072.0,2071.7,16.25]
[1742796583915,4.82672,2071.8,2071.7,16.25]
[1742796584323,4.82752,2071.5,2071.1,6.01]
[1742796584997,4.82743,2071.5,2071.1,6.01]
[1742796585194,4.82723,2071.6,2071.1,6.01]
[1742796585195,4.82708,2071.7,2071.2,0.55]
[1742796585399,4.82736,2071.6,2071.2,0.55]
[1742796585732,9.65472,2071.6,2071.3,10.24]
[1742796585900,9.65476,2071.6,2071.3,10.24]
[1742796586095,4.82625,2072.0,2071.3,10.24]
[1742796586299,9.65428,2071.7,2071.3,10.24]
[1742796586507,4.82704,2071.7,2071.3,10.24]
[1742796586708,0.08911362,2072.8,2071.7,10.24]
[1742796586999,0.08911362,2072.8,2071.9,0.55]
[1742796587000,4.82462,2072.7,2071.9,0.55]
[1742796587205,4.82554,2072.4,2072.0,10.24]
[1742796587401,4.82554,2072.4,2071.1,31.5143]
[1742796587402,0.08911362,2072.8,2072.1,16.25]
[1742796587601,4.82614,2072.1,2071.3,16.25]
[1742796587903,4.82557,2072.3,2071.5,0.55]
[1742796588248,4.82606,2072.1,2071.5,0.55]
[1742796588550,4.82692,2071.8,2071.4,10.24]
[1742796588731,4.82704,2071.7,2071.4,10.24]
[1742796589251,4.82676,2071.8,2071.4,10.24]
[1742796589474,4.82704,2071.7,2071.4,10.24]
[1742796589676,4.82739,2071.6,2071.4,10.24]
[1742796590060,4.82741,2071.5,2071.4,10.24]
[1742796590233,4.82741,2071.5,2071.3,6.01]
[1742796590432,4.82765,2071.4,2071.3,6.01]
[1742796590633,4.8278,2071.4,2071.1,10.24]
[1742796591128,4.82795,2071.3,2071.1,10.24]
[1742796591353,4.8278,2071.4,2071.1,10.24]
[1742796591549,9.65466,2071.6,2071.1,10.24]
[1742796591750,6.34075,2072.0,2071.2,0.59827922]
[1742796591751,6.3409,2072.0,2071.2,0.59827922]
[1742796591954,4.82704,2071.7,2071.2,0.55]
[1742796592369,4.82695,2071.8,2071.3,10.24]
[1742796592572,4.82722,2071.6,2071.4,10.24]
[1742796593438,4.82708,2071.7,2071.4,10.24]
[1742796593644,9.6538,2071.8,2071.4,10.24]
[1742796593842,4.82731,2071.6,2071.4,10.24]
[1742796594371,4.82714,2071.7,2071.4,10.24]
[1742796594580,9.65429,2071.7,2071.4,10.24]
[1742796594869,4.8272,2071.6,2071.4,10.24]
[1742796595068,4.82714,2071.7,2071.4,10.24]
[1742796595253,4.8272,2071.6,2071.4,10.24]
[1742796595659,4.82741,2071.5,2071.3,10.24]
[1742796595863,4.8272,2071.6,2071.3,10.24]
[1742796596059,4.82684,2071.8,2071.3,10.24]
[1742796596260,4.82706,2071.7,2071.3,10.24]
[1742796596462,1.6503,2072.4,2071.4,10.83827621]
[1742796596664,1.6503,2072.4,2071.6,0.55]
[1742796596665,4.82626,2072.0,2071.6,0.55]
[1742796596861,4.82607,2072.1,2071.7,16.25]
[1742796597077,4.82607,2072.1,2071.8,10.24]
[1742796597273,4.82617,2072.1,2071.8,10.24]
[1742796597463,4.82626,2072.0,2071.8,10.24]
[1742796597642,4.82614,2072.1,2071.8,10.24]
[1742796598046,4.82636,2072.0,2071.8,10.24]
[1742796598247,4.82648,2071.9,2071.8,10.24]
[1742796598471,4.82735,2071.6,2071.4,10.24]
[1742796598646,4.82741,2071.5,2071.1,6.01]
[1742796598847,4.82779,2071.4,2071.1,6.01]
[1742796599042,4.82797,2071.3,2071.1,6.01]
[1742796599449,4.82811,2071.2,2071.1,6.01]
[1742796600076,4.82792,2071.3,2071.1,6.01]
[1742796600284,4.82811,2071.2,2071.1,6.01]
[1742796601499,0.35446434,2071.7,2071.1,6.01]
[1742796601647,4.82774,2071.4,2071.1,6.01]
[1742796602100,4.82718,2071.6,2071.1,6.01]
[1742796602301,4.82673,2071.8,2071.1,6.01]
[1742796602504,3.0,2072.0,2071.1,6.01]
[1742796602793,4.82704,2071.7,2071.1,6.01]
[1742796602945,4.8272,2071.6,2071.1,6.01]
[1742796603349,32.8695799,2072.1,2071.2,6.60827878]
[1742796603578,4.82639,2072.0,2071.3,6.01]
[1742796603787,4.82639,2072.0,2071.4,6.01]
[1742796603788,4.82719,2071.6,2071.4,6.01]
[1742796604182,4.82638,2072.0,2071.4,6.01]
[1742796604385,1.3545499,2072.2,2071.5,0.55]
[1742796604679,1.3545499,2072.2,2071.8,4.82672]
[1742796604883,1.5389,2073.3,2071.8,4.82672]
[1742796604884,1.5389,2073.3,2072.2,4.6554501]
[1742796605062,1.5389,2073.3,2072.3,4.6554501]
[1742796605063,4.82457,2072.8,2072.3,4.6554501]
[1742796605256,9.64853,2072.9,2072.4,5.2054501]
[1742796605460,4.82449,2072.8,2072.4,5.2054501]
[1742796605674,4.82466,2072.7,2072.4,5.2054501]
[1742796605872,4.82476,2072.7,2072.5,4.6554501]
[1742796606057,4.82485,2072.6,2072.5,4.6554501]
[1742796606461,7.82485,2072.6,2072.5,4.6554501]
[1742796606662,7.82485,2072.6,2072.0,4.6554501]
[1742796606663,4.82602,2072.1,2072.0,4.6554501]
[1742796610374,4.82672,2071.8,2071.7,4.6554501]
[1742796612559,0.35365764,2072.2,2071.7,4.6554501]